bitfinex-derivatives/quotes_BNBF0:USTF0_20250507
["timestamp","ask_amount","ask_price","bid_price","bid_amount"]
[1746646679184,2.25701879,599.88,598.17,4.18335311]
[1746646679383,1.25701582,599.87,598.17,4.18335311]
[1746646679684,1.25867678,599.86,598.17,4.18335311]
[1746646679881,1.25867678,599.85,598.17,4.18335311]
[1746646680082,1.25867678,599.84,598.17,4.18335311]
[1746646680284,1.25867678,599.83,598.17,4.18335311]
[1746646680486,1.56523803,599.82,598.17,4.18335311]
[1746646680688,1.56523803,599.81,598.17,4.18335311]
[1746646680883,1.25867678,599.8,598.17,4.18335311]
[1746646681087,2.25867975,599.79,598.17,4.18335311]
[1746646681288,1.25867678,599.78,598.17,4.18335311]
[1746646681489,1.25867678,599.77,598.17,4.18335311]
[1746646681689,2.25867975,599.76,598.17,4.18335311]
[1746646681993,2.25867975,599.75,598.17,4.18335311]
[1746646682188,1.25867678,599.74,598.17,4.18335311]
[1746646682384,1.25867678,599.73,598.17,4.18335311]
[1746646682584,1.25867678,599.72,598.17,4.18335311]
[1746646682787,2.25867975,599.71,598.17,4.18335311]
[1746646682990,1.25867678,599.7,598.17,4.18335311]
[1746646683192,1.25867678,599.69,598.17,4.18335311]
[1746646683391,2.25867975,599.68,598.17,4.18335311]
[1746646683587,1.25867678,599.67,598.17,4.18335311]
[1746646683792,1.25867678,599.66,598.17,4.18335311]
[1746646683988,1.25867678,599.65,598.17,4.18335311]
[1746646684184,2.25867975,599.64,598.17,4.18335311]
[1746646684385,1.25867678,599.63,598.17,4.18335311]
[1746646684588,1.00000297,599.64,598.17,4.18335311]
[1746646684589,1.25867678,599.62,598.17,4.18335311]
[1746646684787,1.25867678,599.61,598.17,4.18335311]
[1746646684990,2.25867975,599.6,598.17,4.18335311]
[1746646685192,1.25867678,599.59,598.17,4.18335311]
[1746646685391,1.00000297,599.6,598.17,4.18335311]
[1746646685392,2.25867975,599.58,598.17,4.18335311]
[1746646685690,2.25867975,599.57,598.17,4.18335311]
[1746646685894,1.25867678,599.56,598.17,4.18335311]
[1746646686090,1.25867678,599.55,598.17,4.18335311]
[1746646686294,2.25867975,599.54,598.17,4.18335311]
[1746646686595,1.25867678,599.53,598.17,4.18335311]
[1746646686894,1.25867678,599.52,598.17,4.18335311]
[1746646687196,1.25867678,599.51,598.17,4.18335311]
[1746646687394,2.25867975,599.5,598.17,3.43235311]
[1746646687597,1.25867678,599.49,598.17,3.43235311]
[1746646687795,1.25867678,599.48,598.17,3.43235311]
[1746646687995,1.25867678,599.47,598.17,3.43235311]
[1746646688196,2.25867975,599.46,598.17,3.43235311]
[1746646688392,1.25867678,599.45,598.17,2.40235311]
[1746646688596,1.25867678,599.44,598.17,2.40235311]
[1746646688799,1.25867678,599.43,598.17,2.40235311]
[1746646688998,2.25867975,599.42,598.17,2.40235311]
[1746646689200,1.25867678,599.41,598.17,2.40235311]
[1746646689399,2.25867975,599.4,598.17,2.40235311]
[1746646689600,1.25867678,599.39,598.17,2.40235311]
[1746646689796,1.26291703,599.38,598.17,2.40235311]
[1746646690106,1.26291703,599.37,598.17,1.26935311]
[1746646690295,0.29053992,599.48,598.17,1.26935311]
[1746646690296,2.26292,599.36,598.17,1.26935311]
[1746646690499,1.26291703,599.35,598.17,1.26935311]
[1746646690700,1.26291703,599.34,598.17,0.33435311]
[1746646690895,1.26291703,599.33,598.17,0.33435311]
[1746646691099,2.26292,599.32,598.17,0.33435311]
[1746646691300,1.26291703,599.31,598.17,0.33435311]
[1746646691496,1.26291703,599.3,598.17,0.33435311]
[1746646691698,2.26292,599.29,598.17,0.33435311]
[1746646691898,1.26291703,599.28,598.17,0.33435311]
[1746646692097,2.26292,599.27,598.17,0.33435311]
[1746646692301,1.26291703,599.26,598.17,0.33435311]
[1746646692503,1.00000297,599.26,598.17,0.33435311]
[1746646692802,1.00000297,599.25,598.17,0.33435311]
[1746646693104,1.00000297,599.24,598.17,0.33435311]
[1746646694104,1.00000297,599.23,598.17,0.33435311]
[1746646694601,1.00000297,599.22,598.17,0.33435311]
[1746646695109,0.33339445,599.89,598.17,0.33435311]
[1746646695299,0.29057388,599.48,598.17,0.33435311]
[1746646695504,1.26422185,599.47,598.17,0.33435311]
[1746646695705,1.26422185,599.46,598.17,0.33435311]
[1746646695905,1.26422185,599.45,598.17,0.33435311]
[1746646696203,1.26422185,599.44,598.17,0.33435311]
[1746646696408,1.26422185,599.43,598.17,0.33435311]
[1746646696607,1.26422185,599.42,598.17,0.33435311]
[1746646696805,1.26422185,599.41,598.17,0.33435311]
[1746646697010,1.26422185,599.4,598.17,0.33435311]
[1746646697309,2.26816559,599.39,598.17,0.33435311]
[1746646697510,1.26422185,599.38,598.17,0.33435311]
[1746646697713,2.26816559,599.37,598.19,1.06095198]
[1746646697912,1.26422185,599.36,598.19,1.06095198]
[1746646698106,1.26422185,599.35,598.19,1.06095198]
[1746646698308,2.26816559,599.34,598.19,1.06095198]
[1746646698507,2.26816559,599.33,598.21,0.33433075]
[1746646698710,2.26816559,599.32,598.21,0.33433075]
[1746646698911,1.26422185,599.31,598.21,0.33433075]
[1746646699111,1.26422185,599.3,598.21,0.33433075]
[1746646699312,1.26422185,599.29,598.21,0.33433075]
[1746646699512,1.26422185,599.28,598.21,0.33433075]
[1746646699813,2.26816559,599.27,598.21,0.33433075]
[1746646700013,1.26422185,599.26,598.21,0.33433075]
[1746646700214,1.26422185,599.25,598.21,0.33433075]
[1746646700714,1.00394374,599.24,598.21,0.33433075]
[1746646701115,1.00394374,599.23,598.21,0.33433075]
[1746646701517,1.00394374,599.22,598.21,0.33433075]
[1746646702110,1.00394374,599.21,598.21,0.33433075]
[1746646702815,1.00394374,599.2,598.21,0.33433075]
[1746646703015,1.00394374,599.19,598.21,0.33433075]
[1746646703215,1.00394374,599.18,598.21,0.33433075]
[1746646703408,0.29056539,599.41,598.21,0.33433075]
[1746646703717,2.27153059,599.4,598.21,0.33433075]
[1746646703917,1.26699657,599.39,598.21,0.33433075]
[1746646704116,1.26699657,599.38,598.21,0.33433075]
[1746646704312,1.2670466,599.37,598.21,0.33433075]
[1746646704514,1.2670466,599.36,598.21,0.33433075]
[1746646704816,1.2670466,599.35,598.21,0.33433075]
[1746646705016,1.2670466,599.34,598.21,0.33433075]
[1746646705217,1.2670466,599.33,598.21,0.33433075]
[1746646705413,2.27158062,599.32,598.21,0.33433075]
[1746646705617,1.2670466,599.31,598.21,0.33433075]
[1746646705918,2.27158062,599.3,598.21,0.33433075]
[1746646706117,1.2670466,599.29,598.21,0.33433075]
[1746646706418,1.2670466,599.28,598.21,0.33433075]
[1746646706717,2.27158062,599.27,598.21,0.33433075]
[1746646706918,1.2670466,599.26,598.21,0.33433075]
[1746646707118,2.27158062,599.25,598.21,0.33433075]
[1746646707417,1.26654534,599.24,598.21,0.33433075]
[1746646707617,1.00453402,599.23,598.21,0.33433075]
[1746646708218,1.00453402,599.22,598.21,0.33433075]
[1746646708615,1.00453402,599.21,598.21,0.33433075]
[1746646709116,1.00453402,599.2,598.21,0.33433075]
[1746646709517,1.00453402,599.19,598.21,0.33433075]
[1746646710516,1.00453402,599.18,598.21,0.33433075]
[1746646711217,0.2905848,599.41,598.21,0.33433075]
[1746646711417,1.26735364,599.4,598.21,0.33433075]
[1746646711618,2.27238998,599.39,598.21,0.33433075]
[1746646711821,1.26735364,599.38,598.21,0.33433075]
[1746646712020,1.26735364,599.37,598.21,0.33433075]
[1746646712321,1.26735364,599.36,598.21,0.33433075]
[1746646712520,1.26735364,599.35,598.21,0.33433075]
[1746646712719,2.27238998,599.34,598.21,0.33433075]
[1746646712921,1.26735364,599.33,598.21,0.33433075]
[1746646713116,2.27238998,599.32,598.21,0.33433075]
[1746646713323,1.26735364,599.31,598.21,0.33433075]
[1746646713622,1.26735364,599.3,598.21,0.33433075]
[1746646713814,1.26735364,599.29,598.21,0.33433075]
[1746646714015,2.27238998,599.28,598.21,0.33433075]
[1746646714218,1.26719558,599.27,598.21,0.33433075]
[1746646714524,1.00503634,599.28,598.21,0.33433075]
[1746646716718,1.2671148,599.27,598.21,0.33433075]
[1746646716920,1.26661222,599.26,598.21,0.33433075]
[1746646717123,2.27164856,599.25,598.21,0.33433075]
[1746646717322,1.26661222,599.24,598.21,0.33433075]
[1746646717619,1.00503634,599.23,598.21,0.33433075]
[1746646717824,1.26661222,599.22,598.21,0.33433075]
[1746646718027,2.27164856,599.22,598.21,0.33433075]
[1746646718224,1.00503634,599.22,598.21,0.33433075]
[1746646718426,2.2714894,599.21,598.21,0.33433075]
[1746646718626,1.26645306,599.2,598.21,0.33433075]
[1746646719127,1.00503634,599.19,598.21,0.33433075]
[1746646719829,1.00503634,599.18,598.21,0.33433075]
[1746646720127,1.00503634,599.17,598.21,0.33433075]
[1746646720529,1.00503634,599.16,598.21,0.33433075]
[1746646721023,1.00503634,599.15,598.21,0.33433075]
[1746646721529,1.00503634,599.14,598.21,0.33433075]
[1746646722030,1.00503634,599.13,598.21,0.33433075]
[1746646722931,0.29063091,599.36,598.21,0.33433075]
[1746646723231,1.26777111,599.35,598.21,0.33433075]
[1746646723434,1.26777111,599.34,598.21,0.33433075]
[1746646723628,2.27274925,599.33,598.21,0.33433075]
[1746646723827,1.26777111,599.32,598.21,0.33433075]
[1746646724026,1.26777111,599.31,598.21,0.33433075]
[1746646724332,1.00497814,599.33,598.21,0.33433075]
[1746646724532,0.29063091,599.36,598.21,0.33433075]
[1746646725030,2.2724386,599.35,598.21,0.33433075]
[1746646725228,1.267642,599.34,598.21,0.33433075]
[1746646725431,1.267642,599.33,598.21,0.33433075]
[1746646725632,2.2724386,599.32,598.21,0.33433075]
[1746646725831,1.267642,599.31,598.21,0.33433075]
[1746646726027,2.2724386,599.3,598.21,0.33433075]
[1746646726228,1.267642,599.29,598.21,0.33433075]
[1746646726426,1.267642,599.28,598.21,0.33433075]
[1746646726629,1.267642,599.27,598.21,0.33433075]
[1746646726829,2.2724386,599.26,598.21,0.33433075]
[1746646727030,1.267642,599.25,598.21,0.33433075]
[1746646727231,1.267642,599.24,598.21,0.33433075]
[1746646727429,1.267642,599.23,598.21,0.33433075]
[1746646727625,1.267642,599.22,598.21,0.33433075]
[1746646727831,1.267642,599.21,598.21,0.33433075]
[1746646728031,1.267642,599.2,598.21,0.33433075]
[1746646728231,1.267642,599.19,598.21,0.33433075]
[1746646728428,1.267642,599.18,598.21,0.33433075]
[1746646728633,1.267642,599.17,598.21,0.33433075]
[1746646728828,2.2724386,599.16,598.21,0.33433075]
[1746646729033,1.267642,599.15,598.21,0.33433075]
[1746646729234,1.267642,599.14,598.21,0.33433075]
[1746646729430,1.0047966,599.15,598.21,0.33433075]
[1746646729629,0.29059208,599.36,598.21,0.33433075]
[1746646730433,2.27242828,599.35,598.21,0.33433075]
[1746646730634,1.26756579,599.34,598.21,0.33433075]
[1746646730934,1.26756579,599.33,598.21,0.33433075]
[1746646731235,2.27242828,599.32,598.21,0.33433075]
[1746646731434,1.26756579,599.31,598.21,0.33433075]
[1746646731634,2.27242828,599.3,598.21,0.33433075]
[1746646731836,1.26756579,599.29,598.21,0.33433075]
[1746646732036,2.27242828,599.28,598.21,0.33433075]
[1746646732336,1.26756579,599.27,598.21,0.33433075]
[1746646732635,2.27242828,599.26,598.21,0.33433075]
[1746646732836,1.26756579,599.25,598.21,0.33433075]
[1746646733032,1.26756579,599.24,598.21,0.33433075]
[1746646733230,1.26756579,599.23,598.21,0.33433075]
[1746646733433,1.26756579,599.22,598.21,0.33433075]
[1746646733634,1.26756579,599.21,598.21,0.33433075]
[1746646733835,2.27242828,599.2,598.21,0.33433075]
[1746646734135,2.27242828,599.19,598.21,0.33433075]
[1746646734435,1.26798881,599.18,598.21,0.33433075]
[1746646734632,1.26798881,599.17,598.21,0.33433075]
[1746646734833,2.2728513,599.16,598.21,0.33433075]
[1746646735034,2.2728513,599.15,598.21,0.33433075]
[1746646735234,1.26798881,599.14,598.21,0.33433075]
[1746646735436,1.26798881,599.13,598.21,0.33433075]
[1746646735637,1.26798881,599.12,598.21,0.33433075]
[1746646735837,1.26798881,599.11,598.21,0.33433075]
[1746646736038,1.26798881,599.1,598.21,0.33433075]
[1746646736333,2.2728513,599.09,598.21,0.33433075]
[1746646736538,1.26798881,599.08,598.21,0.33433075]
[1746646736732,1.26798881,599.07,598.21,0.33433075]
[1746646736937,2.2728513,599.06,598.21,0.33433075]
[1746646737138,1.26798881,599.05,598.21,0.33433075]
[1746646737438,1.00486249,599.04,598.21,0.33433075]
[1746646737636,1.00486249,599.03,598.21,0.33433075]
[1746646738238,1.00486249,599.02,598.21,0.33433075]
[1746646738738,1.00486249,599.01,598.21,0.33433075]
[1746646739439,1.00486249,599.0,598.21,0.33433075]
[1746646740036,0.29065033,599.23,598.21,0.33433075]
[1746646740238,1.26790691,599.22,598.21,0.33433075]
[1746646740439,2.27231915,599.21,598.21,0.33433075]
[1746646740633,1.26790691,599.2,598.21,0.33433075]
[1746646740834,2.27231915,599.19,598.21,0.33433075]
[1746646741139,2.27231915,599.18,598.21,0.33433075]
[1746646741339,1.26790691,599.17,598.21,0.33433075]
[1746646741640,1.26790691,599.16,598.21,0.33433075]
[1746646741840,1.26790691,599.15,598.21,0.33433075]
[1746646742038,1.26790691,599.14,598.21,0.33433075]
[1746646742238,2.27231915,599.13,598.21,0.33433075]
[1746646742433,1.26790691,599.12,598.21,0.33433075]
[1746646742635,1.26790691,599.11,598.21,0.33433075]
[1746646742838,1.26790691,599.1,598.21,0.33433075]
[1746646743243,1.00441224,599.11,598.21,0.33433075]
[1746646743541,1.00441224,599.1,598.21,0.33433075]
[1746646744140,1.00441224,599.09,598.21,0.33433075]
[1746646744643,1.00441224,599.08,598.21,0.33433075]
[1746646745043,1.00441224,599.07,598.21,0.33433075]
[1746646745543,1.00441224,599.06,598.21,0.33433075]
[1746646745940,0.33339445,599.89,598.21,0.33433075]
[1746646746141,0.2906212,599.32,598.21,0.33433075]
[1746646746343,1.26984652,599.31,598.21,0.33433075]
[1746646746537,1.26984652,599.3,598.21,0.33433075]
[1746646746742,1.26984652,599.29,598.21,0.33433075]
[1746646746941,1.26984652,599.28,598.21,0.33433075]
[1746646747143,1.26984652,599.27,598.21,0.33433075]
[1746646747342,2.27515853,599.26,598.21,0.33433075]
[1746646747536,1.26984652,599.25,598.21,0.33433075]
[1746646747740,2.27515853,599.24,598.21,0.33433075]
[1746646747943,1.26984652,599.23,598.21,0.33433075]
[1746646748139,1.00531201,599.22,598.21,0.33433075]
[1746646748346,1.26984652,599.21,598.21,0.33433075]
[1746646748545,1.00531201,599.2,598.21,0.33433075]
[1746646748840,1.26984652,599.19,598.21,0.33433075]
[1746646749047,1.00531201,599.18,598.21,0.33433075]
[1746646749346,2.27515853,599.17,598.22,0.979]
[1746646749544,1.26984652,599.16,598.24,0.33431398]
[1746646749745,1.00531201,599.15,598.24,0.33431398]
[1746646750141,1.27143086,599.14,598.24,0.33431398]
[1746646750340,1.00531201,599.13,598.24,0.33431398]
[1746646750545,1.00531201,599.12,598.24,0.33431398]
[1746646750846,1.00531201,599.11,598.24,0.33431398]
[1746646751245,1.00531201,599.1,598.24,0.33431398]
[1746646751845,1.00531201,599.28,598.24,0.33431398]
[1746646752146,2.27690853,599.27,598.24,0.33431398]
[1746646752347,1.27159652,599.26,598.24,0.33431398]
[1746646752541,2.27690853,599.25,598.24,0.33431398]
[1746646752740,1.27159652,599.24,598.24,0.33431398]
[1746646752941,1.27159652,599.23,598.24,0.33431398]
[1746646753141,1.27159652,599.22,598.24,0.33431398]
[1746646753342,2.27690853,599.21,598.24,0.33431398]
[1746646753541,1.27159652,599.2,598.24,0.33431398]
[1746646753846,1.00531201,599.19,598.24,0.33431398]
[1746646754147,1.27159652,599.18,598.24,0.33431398]
[1746646754646,1.00531201,599.17,598.24,0.33431398]
[1746646754848,1.27159652,599.16,598.24,0.33431398]
[1746646755147,1.00531201,599.15,598.24,0.33431398]
[1746646755447,1.27159652,599.14,598.24,0.33431398]
[1746646755646,1.27159652,599.13,598.24,0.33431398]
[1746646755841,1.27159652,599.12,598.24,0.33431398]
[1746646756043,2.27690853,599.11,598.24,0.33431398]
[1746646756343,1.27159652,599.1,598.24,0.33431398]
[1746646756547,2.27690853,599.09,598.24,0.33431398]
[1746646756747,1.27159652,599.08,598.24,0.33431398]
[1746646756947,1.27159652,599.07,598.24,0.33431398]
[1746646757143,2.27690853,599.06,598.24,0.33431398]
[1746646757444,1.00531201,599.06,598.24,0.33431398]
[1746646757646,2.27984025,599.05,598.24,0.33431398]
[1746646757847,1.00531201,599.04,598.24,0.33431398]
[1746646758346,1.00531201,599.03,598.24,0.33431398]
[1746646758848,1.00531201,599.02,598.24,0.33431398]
[1746646759249,1.00531201,599.01,598.24,0.33431398]
[1746646759645,1.00531201,599.0,598.24,0.33431398]
[1746646760342,0.29061271,599.29,598.24,0.33431398]
[1746646760546,1.27357877,599.28,598.24,0.33431398]
[1746646760748,2.28042522,599.27,598.24,0.33431398]
[1746646760949,1.27357877,599.26,598.24,0.33431398]
[1746646761143,1.27357877,599.25,598.24,0.33431398]
[1746646761345,1.27357877,599.24,598.24,0.33431398]
[1746646761542,2.28042522,599.23,598.25,0.982]
[1746646761750,1.27357877,599.22,598.26,0.33430281]
[1746646761949,2.28042522,599.21,598.26,0.33430281]
[1746646762149,1.27357877,599.2,598.26,0.33430281]
[1746646762348,2.28042522,599.19,598.26,0.33430281]
[1746646762550,1.27357877,599.18,598.26,0.33430281]
[1746646762747,1.27312622,599.17,598.26,0.33430281]
[1746646763049,2.27997267,599.16,598.26,0.33430281]
[1746646763249,1.27312622,599.15,598.26,0.33430281]
[1746646763449,2.27997267,599.14,598.26,0.33430281]
[1746646763645,1.27312622,599.13,598.26,0.33430281]
[1746646763848,2.27997267,599.12,598.26,0.33430281]
[1746646764044,1.27312622,599.11,598.26,0.33430281]
[1746646764347,1.27312622,599.1,598.26,0.33430281]
[1746646764545,1.27312622,599.09,598.26,0.33430281]
[1746646764745,2.27997267,599.08,598.26,0.33430281]
[1746646764950,1.27312622,599.07,598.26,0.33430281]
[1746646765152,1.00684645,599.08,598.26,0.33430281]
[1746646765348,1.27401977,599.07,598.26,0.33430281]
[1746646765549,1.00684645,599.07,598.26,0.33430281]
[1746646765748,1.27406197,599.06,598.26,0.33430281]
[1746646765952,1.00684645,599.05,598.26,0.33430281]
[1746646766259,1.00684645,599.04,598.26,0.33430281]
[1746646766457,1.00684645,599.04,598.27,0.971]
[1746646766753,1.00684645,599.03,598.28,0.33429163]
[1746646767053,1.00684645,599.02,598.28,0.33429163]
[1746646767455,2.28275604,599.01,598.28,0.33429163]
[1746646767753,2.28275604,599.0,598.28,0.33429163]
[1746646767958,1.26242518,598.99,598.28,0.33429163]
[1746646768157,1.00684645,599.0,598.28,0.33429163]
[1746646768357,1.00684645,598.99,598.28,0.33429163]
[1746646768853,1.00684645,598.98,598.28,0.33429163]
[1746646769358,1.00684645,598.97,598.28,0.33429163]
[1746646769659,1.00684645,598.96,598.28,0.33429163]
[1746646770053,1.00684645,598.95,598.28,0.33429163]
[1746646770555,1.00684645,598.94,598.28,0.33429163]
[1746646770860,1.00684645,598.93,598.28,0.33429163]
[1746646771061,1.00684645,598.92,598.28,0.33429163]
[1746646771661,1.00684645,598.91,598.28,0.33429163]
[1746646772262,1.00684645,598.9,598.28,0.33429163]
[1746646772763,0.33339445,599.89,598.28,0.33429163]
[1746646773064,0.30673137,599.88,598.28,0.33429163]
[1746646773365,1.00721038,599.87,598.28,0.33429163]
[1746646773559,1.00721038,599.86,598.28,0.33429163]
[1746646773759,1.00721038,599.85,598.28,0.33429163]
[1746646774162,0.30673137,599.84,598.28,0.33429163]
[1746646774362,1.00721038,599.83,598.28,0.33429163]
[1746646774661,0.30673137,599.82,598.28,0.33429163]
[1746646774866,1.00721038,599.81,598.28,0.33429163]
[1746646775166,1.64738623,599.8,598.28,0.33429163]
[1746646775566,0.33345004,599.79,598.28,0.33429163]
[1746646775760,0.64018141,599.79,598.28,0.33429163]
[1746646776065,1.60448167,599.78,598.28,0.33429163]
[1746646776365,0.30673137,599.77,598.28,0.33429163]
[1746646776767,0.33346672,599.76,598.28,0.33429163]
[1746646776963,1.00721038,599.75,598.28,0.33429163]
[1746646777163,1.00721038,599.74,598.28,0.33429163]
[1746646777364,0.3334834,599.73,598.28,0.33429163]
[1746646777561,0.30673137,599.72,598.28,0.33429163]
[1746646777961,1.00721038,599.71,598.28,0.33429163]
[1746646778161,0.64023145,599.7,598.28,0.33429163]
[1746646778362,1.00721038,599.69,598.28,0.33429163]
[1746646778667,0.3335112,599.68,598.28,0.33429163]
[1746646778867,1.00721038,599.67,598.28,0.33429163]
[1746646779164,0.64025369,599.66,598.28,0.33429163]
[1746646779369,0.64025926,599.65,598.28,0.33429163]
[1746646779569,1.34074383,599.64,598.28,0.33429163]
[1746646779864,1.27256179,599.63,598.28,0.33429163]
[1746646780168,1.27256179,599.62,598.28,1.28529163]
[1746646780369,2.58650354,599.61,598.28,1.28529163]
[1746646780569,1.27256179,599.6,598.28,1.28529163]
[1746646780771,2.27977217,599.59,598.28,1.28529163]
[1746646780971,2.27977217,599.58,598.28,1.28529163]
[1746646781166,1.57924521,599.57,598.28,1.28529163]
[1746646781367,1.27256179,599.56,598.28,1.28529163]
[1746646781565,1.27256179,599.55,598.28,1.28529163]
[1746646781769,1.27256179,599.54,598.28,1.28529163]
[1746646781969,1.27256179,599.53,598.28,1.28529163]
[1746646782165,2.27977217,599.52,598.28,1.28529163]
[1746646782369,1.27256179,599.51,598.28,1.28529163]
[1746646782569,2.27977217,599.5,598.28,1.28529163]
[1746646782872,1.27256179,599.49,598.28,1.28529163]
[1746646783070,1.27256179,599.48,598.28,1.28529163]
[1746646783370,2.27977217,599.47,598.28,1.28529163]
[1746646783571,1.27256179,599.46,598.28,1.28529163]
[1746646783772,2.27977217,599.45,598.28,1.28529163]
[1746646783972,1.27256179,599.44,598.28,1.28529163]
[1746646784170,1.27256179,599.43,598.28,1.28529163]
[1746646784374,2.27977217,599.42,598.28,1.28529163]
[1746646784574,1.27256179,599.41,598.28,1.28529163]
[1746646784770,2.27977217,599.4,598.28,1.28529163]
[1746646785074,1.27256179,599.39,598.28,1.28529163]
[1746646785274,2.27977217,599.38,598.28,1.28529163]
[1746646785474,1.27256179,599.37,598.28,1.28529163]
[1746646785774,1.27256179,599.36,598.28,1.28529163]
[1746646785969,1.27256179,599.35,598.28,1.28529163]
[1746646786170,0.29056418,599.4,598.28,1.28529163]
[1746646786171,2.27977217,599.34,598.28,1.28529163]
[1746646786369,1.27256179,599.33,598.28,1.28529163]
[1746646786568,1.27164842,599.32,598.28,1.28529163]
[1746646786769,1.27164842,599.31,598.28,1.28529163]
[1746646786974,1.27164842,599.3,598.28,1.28529163]
[1746646787273,1.27164842,599.29,598.28,2.02329163]
[1746646787474,1.27164842,599.28,598.28,2.02329163]
[1746646787675,1.27164842,599.27,598.28,2.02329163]
[1746646787875,2.2788588,599.26,598.28,2.02329163]
[1746646788077,1.27164842,599.25,598.28,2.02329163]
[1746646788278,2.27874296,599.24,598.28,2.02329163]
[1746646788477,2.27874296,599.23,598.28,2.02329163]
[1746646788678,1.27153258,599.22,598.28,2.02329163]
[1746646788873,1.27153258,599.21,598.28,2.02329163]
[1746646789074,2.27874296,599.2,598.28,2.02329163]
[1746646789275,1.27153258,599.19,598.28,2.02329163]
[1746646789478,2.27874296,599.18,598.28,2.02329163]
[1746646789679,2.27874296,599.17,598.28,2.02329163]
[1746646789978,1.27153258,599.16,598.28,2.02329163]
[1746646790178,1.27153258,599.15,598.28,2.02329163]
[1746646790374,2.27874296,599.14,598.28,2.02329163]
[1746646790574,1.27153258,599.13,598.28,2.02329163]
[1746646790775,1.00721038,599.14,598.28,2.02329163]
[1746646790975,2.27695812,599.13,598.28,2.83329163]
[1746646791175,1.00721038,599.12,598.28,2.83329163]
[1746646791776,1.00721038,599.11,598.28,2.83329163]
[1746646792081,1.00721038,599.1,598.28,2.83329163]
[1746646792681,1.00721038,599.09,598.28,2.83329163]
[1746646793181,0.29059329,599.36,598.28,2.83329163]
[1746646793481,2.27467835,599.35,598.28,2.83329163]
[1746646793676,1.00529224,599.35,598.28,2.83329163]
[1746646793877,1.26926568,599.34,598.28,2.83329163]
[1746646794075,2.27455792,599.33,598.28,2.83329163]
[1746646794280,1.26926568,599.32,598.28,2.83329163]
[1746646794579,1.26926568,599.31,598.28,2.83329163]
[1746646794779,1.26898977,599.3,598.28,2.83329163]
[1746646794981,2.27428201,599.29,598.28,2.83329163]
[1746646795182,1.26898977,599.28,598.28,2.83329163]
[1746646795478,2.27428201,599.27,598.28,2.83329163]
[1746646795678,1.26898977,599.26,598.28,2.83329163]
[1746646795878,1.26898977,599.25,598.28,2.83329163]
[1746646796083,2.27428201,599.24,598.28,2.83329163]
[1746646796277,1.26898977,599.23,598.28,2.83329163]
[1746646796482,2.27399219,599.22,598.28,2.83329163]
[1746646796679,1.26869995,599.21,598.28,2.83329163]
[1746646796882,2.2736205,599.2,598.28,2.83329163]
[1746646797184,1.00492055,599.2,598.28,2.83329163]
[1746646797382,1.00492055,599.19,598.28,2.83329163]
[1746646797879,1.00492055,599.18,598.28,2.83329163]
[1746646798181,1.00492055,599.17,598.28,2.83329163]
[1746646798886,0.2905569,599.49,598.28,2.83329163]
[1746646799085,1.26757033,599.48,598.28,2.83329163]
[1746646799285,1.26757033,599.47,598.28,2.83329163]
[1746646799484,1.26757033,599.46,598.28,2.83329163]
[1746646799682,1.26757033,599.45,598.28,2.83329163]
[1746646799879,1.26757033,599.44,598.28,2.83329163]
[1746646800085,2.27171658,599.43,598.28,2.83329163]
[1746646800286,1.26757033,599.42,598.28,2.83329163]
[1746646800586,2.27171658,599.41,598.28,2.83329163]
[1746646800785,1.26757033,599.4,598.28,2.83329163]
[1746646800981,2.27171658,599.39,598.28,2.83329163]
[1746646801180,1.26757033,599.38,598.28,2.83329163]
[1746646801386,1.26757033,599.37,598.28,2.83329163]
[1746646801586,1.26757033,599.36,598.28,2.83329163]
[1746646801785,1.26757033,599.35,598.28,2.83329163]
[1746646801982,2.27171658,599.34,598.28,2.83329163]
[1746646802285,1.26757033,599.33,598.28,2.83329163]
[1746646802492,1.26757033,599.32,598.28,2.83329163]
[1746646802689,1.26757033,599.31,598.28,2.83329163]
[1746646802883,1.26757033,599.3,598.28,2.83329163]
[1746646803086,1.26757033,599.29,598.28,2.83329163]
[1746646803287,1.00414625,599.3,598.28,2.83329163]
[1746646803688,1.00414625,599.29,598.28,2.83329163]
[1746646804183,1.00414625,599.28,598.28,2.83329163]
[1746646804489,0.29052537,599.56,598.28,2.83329163]
[1746646804789,2.27057304,599.55,598.28,2.83329163]
[1746646804989,2.27057304,599.54,598.28,2.83329163]
[1746646805289,1.26709264,599.53,598.28,2.83329163]
[1746646805588,1.26709264,599.52,598.28,2.83329163]
[1746646805783,1.26709264,599.51,598.28,2.83329163]
[1746646805989,1.26709264,599.5,598.28,2.83329163]
[1746646806289,2.27057304,599.49,598.28,2.83329163]
[1746646806488,1.26709264,599.48,598.28,2.83329163]
[1746646806690,2.27057304,599.47,598.28,2.83329163]
[1746646806890,1.26709264,599.46,598.28,2.83329163]
[1746646807189,2.27057304,599.45,598.28,2.83329163]
[1746646807389,1.26709264,599.44,598.28,2.83329163]
[1746646807589,1.26709264,599.43,598.28,2.83329163]
[1746646807789,1.26709264,599.42,598.28,2.83329163]
[1746646807990,2.27057304,599.41,598.28,2.83329163]
[1746646808191,1.26709264,599.4,598.28,2.83329163]
[1746646808391,1.26709264,599.39,598.28,2.83329163]
[1746646808589,0.29052537,599.56,598.28,2.83329163]
[1746646808590,2.27057304,599.38,598.28,2.83329163]
[1746646808788,1.26709264,599.37,598.28,2.83329163]